[Event "Late-Titled-Tuesday-Blitz-March-19-2024"]
[Site "Chess.com"]
[Date "2024.03.19"]
[Round "7"]
[White "Mariia89"]
[Black "subham777"]
[Result "1/2-1/2"]
[WhiteElo "2293"]
[BlackElo "2530"]
[TimeControl "180+1"]
[EndTime "15:15:42 PDT"]
[Termination "Game drawn by repetition"]

1. d4 {[%clk 0:02:59.2]} 1... d5 {[%clk 0:02:56]} 2. c4 {[%clk 0:02:58.3]} 2...
e6 {[%clk 0:02:52.9]} 3. Nc3 {[%clk 0:02:58]} 3... Nf6 {[%clk 0:02:53.5]} 4. Nf3
{[%clk 0:02:58.2]} 4... Be7 {[%clk 0:02:53.6]} 5. Bg5 {[%clk 0:02:58]} 5... O-O
{[%clk 0:02:53]} 6. e3 {[%clk 0:02:58.3]} 6... Ne4 {[%clk 0:02:53.3]} 7. Bxe7
{[%clk 0:02:47.7]} 7... Qxe7 {[%clk 0:02:51.9]} 8. Nxe4 {[%clk 0:02:41.8]} 8...
dxe4 {[%clk 0:02:51.6]} 9. Nd2 {[%clk 0:02:42.7]} 9... f5 {[%clk 0:02:51.5]} 10.
Be2 {[%clk 0:02:22.1]} 10... c5 {[%clk 0:02:43.7]} 11. O-O {[%clk 0:02:19.2]}
11... cxd4 {[%clk 0:02:42.5]} 12. exd4 {[%clk 0:02:20]} 12... Nc6 {[%clk
0:02:42.5]} 13. Nb3 {[%clk 0:02:13.7]} 13... Rd8 {[%clk 0:02:40.2]} 14. f3
{[%clk 0:02:12.8]} 14... e3 {[%clk 0:02:39]} 15. f4 {[%clk 0:02:09.8]} 15... a5
{[%clk 0:02:30.9]} 16. d5 {[%clk 0:02:00.6]} 16... exd5 {[%clk 0:02:28.4]} 17.
cxd5 {[%clk 0:02:01.5]} 17... Nb4 {[%clk 0:02:28.6]} 18. Bc4 {[%clk 0:01:52.4]}
18... Qe4 {[%clk 0:02:23.3]} 19. Qe2 {[%clk 0:01:19.7]} 19... b6 {[%clk
0:02:08.1]} 20. a3 {[%clk 0:01:18]} 20... Na6 {[%clk 0:01:56.8]} 21. Rad1 {[%clk
0:01:17.8]} 21... Nc5 {[%clk 0:01:46.1]} 22. Rd4 {[%clk 0:01:16]} 22... Qe8
{[%clk 0:01:39.6]} 23. Rf3 {[%clk 0:01:02.6]} 23... Nxb3 {[%clk 0:01:28.9]} 24.
Bxb3 {[%clk 0:01:02.4]} 24... Ba6 {[%clk 0:01:27.4]} 25. Qxe3 {[%clk 0:01:02.1]}
25... Qh5 {[%clk 0:01:26.1]} 26. Rh3 {[%clk 0:00:48.9]} 26... Re8 {[%clk
0:01:16.8]} 27. d6+ {[%clk 0:00:31.4]} 27... Kh8 {[%clk 0:01:12.9]} 28. Rxh5
{[%clk 0:00:21.1]} 28... Rxe3 {[%clk 0:01:11.8]} 29. d7 {[%clk 0:00:18.8]} 29...
Rd8 {[%clk 0:01:10.4]} 30. Rxf5 {[%clk 0:00:17]} 30... g6 {[%clk 0:01:09.8]} 31.
Rf7 {[%clk 0:00:16.2]} 31... Rxb3 {[%clk 0:01:08.1]} 32. Re4 {[%clk 0:00:13.7]}
32... Bb5 {[%clk 0:01:04.4]} 33. Ree7 {[%clk 0:00:11.5]} 33... Bxd7 {[%clk
0:00:48.3]} 34. Rxh7+ {[%clk 0:00:11.2]} 34... Kg8 {[%clk 0:00:46.1]} 35. Rhg7+
{[%clk 0:00:11.4]} 35... Kf8 {[%clk 0:00:44.7]} 36. Rgf7+ {[%clk 0:00:11.6]}
36... Kg8 {[%clk 0:00:44.5]} 37. Rg7+ {[%clk 0:00:12.3]} 37... Kf8 {[%clk
0:00:44.9]} 38. Rgf7+ {[%clk 0:00:12.6]} 38... Kg8 {[%clk 0:00:45.3]} 39. Rg7+
{[%clk 0:00:13.1]} 1/2-1/2

[Event "Late-Titled-Tuesday-Blitz-March-19-2024"]
[Site "Chess.com"]
[Date "2024.03.19"]
[Round "7"]
[White "malakismayil"]
[Black "Rodalquilar"]
[Result "0-1"]
[WhiteElo "2519"]
[BlackElo "2759"]
[TimeControl "180+1"]
[EndTime "15:15:44 PDT"]
[Termination "Rodalquilar won on time"]

1. e4 {[%clk 0:03:00.9]} 1... d5 {[%clk 0:02:59.9]} 2. exd5 {[%clk 0:02:59.9]}
2... Qxd5 {[%clk 0:03:00.8]} 3. Nc3 {[%clk 0:02:59.9]} 3... Qa5 {[%clk
0:03:01.2]} 4. Bc4 {[%clk 0:02:59.4]} 4... Nf6 {[%clk 0:03:01.5]} 5. Nf3 {[%clk
0:02:56.5]} 5... Nc6 {[%clk 0:03:00.8]} 6. d3 {[%clk 0:02:55.7]} 6... Bg4 {[%clk
0:02:59.9]} 7. h3 {[%clk 0:02:54.1]} 7... Qh5 {[%clk 0:02:59.7]} 8. Bb5 {[%clk
0:02:47.2]} 8... O-O-O {[%clk 0:02:57.2]} 9. Bxc6 {[%clk 0:02:45.4]} 9... bxc6
{[%clk 0:02:58.1]} 10. Be3 {[%clk 0:02:36.7]} 10... Bxf3 {[%clk 0:02:54.4]} 11.
gxf3 {[%clk 0:02:34.7]} 11... Kb7 {[%clk 0:02:50.3]} 12. Qe2 {[%clk 0:02:33.1]}
12... e6 {[%clk 0:02:50.3]} 13. O-O-O {[%clk 0:02:31.5]} 13... Qa5 {[%clk
0:02:49.3]} 14. Kb1 {[%clk 0:02:29.2]} 14... Bb4 {[%clk 0:02:48.2]} 15. Ne4
{[%clk 0:02:29.2]} 15... Nd5 {[%clk 0:02:48]} 16. Rhg1 {[%clk 0:02:17.3]} 16...
Rhg8 {[%clk 0:02:47.5]} 17. c4 {[%clk 0:01:55]} 17... Nf6 {[%clk 0:02:30.9]} 18.
a3 {[%clk 0:01:43]} 18... Be7 {[%clk 0:02:27]} 19. Bd2 {[%clk 0:01:35.5]} 19...
Qa4 {[%clk 0:02:23.5]} 20. Bc3 {[%clk 0:01:32]} 20... Qb3 {[%clk 0:02:15.9]} 21.
Qc2 {[%clk 0:01:21.2]} 21... Qxc2+ {[%clk 0:02:15.6]} 22. Kxc2 {[%clk
0:01:22.1]} 22... Nh5 {[%clk 0:02:09.7]} 23. b4 {[%clk 0:00:56.8]} 23... g6
{[%clk 0:02:08.6]} 24. Bd2 {[%clk 0:00:50.9]} 24... Ng7 {[%clk 0:02:07.8]} 25.
Be3 {[%clk 0:00:48.4]} 25... Nf5 {[%clk 0:02:07.8]} 26. Rb1 {[%clk 0:00:40.8]}
26... Nh4 {[%clk 0:02:06.6]} 27. Nd2 {[%clk 0:00:36.8]} 27... Rd7 {[%clk
0:02:03.5]} 28. b5 {[%clk 0:00:36.8]} 28... Rgd8 {[%clk 0:01:59.9]} 29. bxc6+
{[%clk 0:00:35.2]} 29... Kxc6 {[%clk 0:02:00.2]} 30. Rb3 {[%clk 0:00:36]} 30...
Nf5 {[%clk 0:01:50.8]} 31. Bxa7 {[%clk 0:00:30]} 31... Ra8 {[%clk 0:01:49.4]}
32. Be3 {[%clk 0:00:28.2]} 32... Rxa3 {[%clk 0:01:49.6]} 33. Rxa3 {[%clk
0:00:27.2]} 33... Bxa3 {[%clk 0:01:50.5]} 34. Ra1 {[%clk 0:00:26]} 34... Bc5
{[%clk 0:01:45.4]} 35. Bxc5 {[%clk 0:00:21.2]} 35... Kxc5 {[%clk 0:01:46.3]} 36.
Kc3 {[%clk 0:00:19.9]} 36... Nd4 {[%clk 0:01:38.3]} 37. Ra6 {[%clk 0:00:18.7]}
37... f5 {[%clk 0:01:30.9]} 38. Ra5+ {[%clk 0:00:15]} 38... Kb6 {[%clk
0:01:29.5]} 39. Ra8 {[%clk 0:00:15.1]} 39... Ne2+ {[%clk 0:01:27.8]} 40. Kc2
{[%clk 0:00:15]} 40... Nf4 {[%clk 0:01:28.4]} 41. Ra3 {[%clk 0:00:09.4]} 41...
Nxh3 {[%clk 0:01:27.7]} 42. Nb3 {[%clk 0:00:08.7]} 42... Nxf2 {[%clk 0:01:25.3]}
43. d4 {[%clk 0:00:08.8]} 43... g5 {[%clk 0:01:18.7]} 44. Kc3 {[%clk 0:00:07.7]}
44... g4 {[%clk 0:01:14.1]} 45. fxg4 {[%clk 0:00:08.6]} 45... fxg4 {[%clk
0:01:14.7]} 46. c5+ {[%clk 0:00:08.9]} 46... Kc6 {[%clk 0:01:10.7]} 47. Kc4
{[%clk 0:00:03.2]} 47... Rd8 {[%clk 0:01:10]} 48. Na5+ {[%clk 0:00:02.8]} 48...
Kd7 {[%clk 0:01:10.5]} 0-1

[Event "Late-Titled-Tuesday-Blitz-March-19-2024"]
[Site "Chess.com"]
[Date "2024.03.19"]
[Round "7"]
[White "Sanan_Sjugirov"]
[Black "KuzubovYuriy"]
[Result "1-0"]
[WhiteElo "3012"]
[BlackElo "2904"]
[TimeControl "180+1"]
[EndTime "15:15:46 PDT"]
[Termination "Sanan_Sjugirov won by resignation"]

1. e4 {[%clk 0:03:00.9]} 1... e6 {[%clk 0:03:00]} 2. d4 {[%clk 0:03:00.5]} 2...
d5 {[%clk 0:03:00.7]} 3. e5 {[%clk 0:03:00.2]} 3... c5 {[%clk 0:03:00.7]} 4. c3
{[%clk 0:03:00.8]} 4... Nc6 {[%clk 0:03:00.8]} 5. Nf3 {[%clk 0:03:01.2]} 5...
Qb6 {[%clk 0:03:01.5]} 6. a3 {[%clk 0:03:01]} 6... c4 {[%clk 0:02:59.6]} 7. Nbd2
{[%clk 0:02:59.3]} 7... Na5 {[%clk 0:02:56.1]} 8. Be2 {[%clk 0:02:58]} 8... Bd7
{[%clk 0:02:56.1]} 9. Rb1 {[%clk 0:02:50.8]} 9... Ne7 {[%clk 0:02:55.5]} 10. Nf1
{[%clk 0:02:50]} 10... Qc7 {[%clk 0:02:49.6]} 11. Bf4 {[%clk 0:02:44.8]} 11...
Bc6 {[%clk 0:02:42.1]} 12. Ne3 {[%clk 0:02:41.9]} 12... Qd7 {[%clk 0:02:41.8]}
13. O-O {[%clk 0:02:37.9]} 13... Ba4 {[%clk 0:02:41.2]} 14. Qe1 {[%clk
0:02:36.4]} 14... h6 {[%clk 0:02:36.4]} 15. h3 {[%clk 0:02:27.7]} 15... O-O-O
{[%clk 0:02:25.7]} 16. Nd2 {[%clk 0:02:21.3]} 16... Kb8 {[%clk 0:02:10.2]} 17.
Bh2 {[%clk 0:02:20.1]} 17... Ka8 {[%clk 0:02:09.4]} 18. h4 {[%clk 0:02:00.2]}
18... f5 {[%clk 0:02:00.2]} 19. exf6 {[%clk 0:01:47.1]} 19... gxf6 {[%clk
0:02:00.3]} 20. Bd1 {[%clk 0:01:24.1]} 20... Bc6 {[%clk 0:01:49.4]} 21. Bc2
{[%clk 0:01:18.3]} 21... Rg8 {[%clk 0:01:47.4]} 22. Qe2 {[%clk 0:01:02.2]} 22...
Re8 {[%clk 0:00:48.9]} 23. Rbe1 {[%clk 0:01:00.3]} 23... Ng6 {[%clk 0:00:40]}
24. h5 {[%clk 0:00:53.6]} 24... Nh8 {[%clk 0:00:35.2]} 25. Nf3 {[%clk
0:00:43.8]} 25... Nf7 {[%clk 0:00:27]} 26. Nh4 {[%clk 0:00:42.5]} 26... Ng5
{[%clk 0:00:22.6]} 27. Ng6 {[%clk 0:00:41.2]} 27... Bg7 {[%clk 0:00:17.6]} 28.
f4 {[%clk 0:00:38.1]} 28... Ne4 {[%clk 0:00:16.7]} 29. Bxe4 {[%clk 0:00:38.7]}
29... dxe4 {[%clk 0:00:17]} 30. f5 {[%clk 0:00:39.6]} 30... Bf8 {[%clk
0:00:10.8]} 31. fxe6 {[%clk 0:00:37.6]} 31... Qxe6 {[%clk 0:00:11.3]} 32. Rf5
{[%clk 0:00:35.9]} 32... Nb3 {[%clk 0:00:07.9]} 33. d5 {[%clk 0:00:33.8]} 33...
Bxd5 {[%clk 0:00:07.6]} 34. Nxd5 {[%clk 0:00:30.8]} 34... Nc5 {[%clk 0:00:05.6]}
35. Nc7+ {[%clk 0:00:30.8]} 1-0

[Event "Late-Titled-Tuesday-Blitz-March-19-2024"]
[Site "Chess.com"]
[Date "2024.03.19"]
[Round "7"]
[White "ozates"]
[Black "Heinza9"]
[Result "1-0"]
[WhiteElo "2566"]
[BlackElo "2338"]
[TimeControl "180+1"]
[EndTime "15:15:46 PDT"]
[Termination "ozates won by resignation"]

1. e4 {[%clk 0:03:00.9]} 1... e6 {[%clk 0:03:00]} 2. d4 {[%clk 0:02:59.2]} 2...
d5 {[%clk 0:03:00.1]} 3. Nd2 {[%clk 0:02:59.8]} 3... c5 {[%clk 0:02:59.1]} 4.
exd5 {[%clk 0:02:56.3]} 4... Qxd5 {[%clk 0:02:57.8]} 5. dxc5 {[%clk 0:02:56.5]}
5... Bxc5 {[%clk 0:02:57]} 6. Ngf3 {[%clk 0:02:56.6]} 6... Nf6 {[%clk
0:02:52.7]} 7. a4 {[%clk 0:02:55.9]} 7... a6 {[%clk 0:02:52.1]} 8. Be2 {[%clk
0:02:55.8]} 8... Bxf2+ {[%clk 0:02:44.2]} 9. Kxf2 {[%clk 0:02:30.8]} 9... Ng4+
{[%clk 0:02:42.6]} 10. Ke1 {[%clk 0:02:17]} 10... Ne3 {[%clk 0:02:40.4]} 11. c4
{[%clk 0:02:17.4]} 11... Qa5 {[%clk 0:01:06.1]} 12. Qb3 {[%clk 0:02:12.2]} 12...
Nxg2+ {[%clk 0:01:06.3]} 13. Kf2 {[%clk 0:02:12.2]} 13... Nf4 {[%clk 0:01:03.8]}
14. Ne4 {[%clk 0:02:08.8]} 14... Nxe2 {[%clk 0:01:00.5]} 15. Kxe2 {[%clk
0:02:08.2]} 15... O-O {[%clk 0:01:00.4]} 16. Rg1 {[%clk 0:02:07.6]} 16... f5
{[%clk 0:00:58.8]} 17. Bh6 {[%clk 0:02:03.5]} 17... fxe4 {[%clk 0:00:52.4]} 18.
Rxg7+ {[%clk 0:02:02.7]} 18... Kh8 {[%clk 0:00:52.7]} 19. Ng5 {[%clk 0:01:55.6]}
19... Nc6 {[%clk 0:00:50]} 20. Rxh7+ {[%clk 0:01:49.9]} 20... Kg8 {[%clk
0:00:48.9]} 21. Rg7+ {[%clk 0:01:50.5]} 21... Kh8 {[%clk 0:00:49.2]} 22. Qh3
{[%clk 0:00:51.9]} 22... Nd4+ {[%clk 0:00:43.3]} 23. Kd1 {[%clk 0:00:48.7]}
23... Qf5 {[%clk 0:00:27.2]} 24. Rh7+ {[%clk 0:00:38.3]} 24... Kg8 {[%clk
0:00:26.2]} 25. Bxf8 {[%clk 0:00:26.3]} 25... Qxh3 {[%clk 0:00:22.5]} 26. Rxh3
{[%clk 0:00:27.2]} 26... Kxf8 {[%clk 0:00:22.6]} 27. Nxe4 {[%clk 0:00:25.7]}
27... Bd7 {[%clk 0:00:22.7]} 28. Rh8+ {[%clk 0:00:22]} 28... Ke7 {[%clk
0:00:19.8]} 29. Rxa8 {[%clk 0:00:22.9]} 29... Bc6 {[%clk 0:00:20.4]} 30. Nd2
{[%clk 0:00:18.2]} 30... e5 {[%clk 0:00:18.2]} 31. Ra3 {[%clk 0:00:17.3]} 31...
e4 {[%clk 0:00:17.9]} 32. Re3 {[%clk 0:00:17.1]} 32... Nf5 {[%clk 0:00:17]} 33.
Rxe4+ {[%clk 0:00:17.4]} 33... Bxe4 {[%clk 0:00:17]} 34. Nxe4 {[%clk 0:00:18.3]}
1-0

[Event "Late-Titled-Tuesday-Blitz-March-19-2024"]
[Site "Chess.com"]
[Date "2024.03.19"]
[Round "7"]
[White "bescmelasti"]
[Black "yosephtaher"]
[Result "1/2-1/2"]
[WhiteElo "2687"]
[BlackElo "2944"]
[TimeControl "180+1"]
[EndTime "15:15:48 PDT"]
[Termination "Game drawn - insufficient material"]

1. e4 {[%clk 0:03:00.9]} 1... c5 {[%clk 0:02:58.8]} 2. Nf3 {[%clk 0:03:01.2]}
2... g6 {[%clk 0:02:58.8]} 3. c3 {[%clk 0:03:01]} 3... Nf6 {[%clk 0:02:59.1]} 4.
e5 {[%clk 0:02:58.7]} 4... Nd5 {[%clk 0:02:59]} 5. d4 {[%clk 0:02:58.6]} 5...
cxd4 {[%clk 0:02:59.9]} 6. Qxd4 {[%clk 0:02:57.5]} 6... Nc7 {[%clk 0:02:59.8]}
7. Bc4 {[%clk 0:02:51.2]} 7... Nc6 {[%clk 0:02:58.9]} 8. Qe4 {[%clk 0:02:51]}
8... Bg7 {[%clk 0:02:57.7]} 9. O-O {[%clk 0:02:51.1]} 9... O-O {[%clk
0:02:57.8]} 10. Bf4 {[%clk 0:02:50.6]} 10... d6 {[%clk 0:02:51.8]} 11. exd6
{[%clk 0:02:42.5]} 11... exd6 {[%clk 0:02:52.7]} 12. Rd1 {[%clk 0:02:32.5]}
12... d5 {[%clk 0:02:51.4]} 13. Bxc7 {[%clk 0:02:11.5]} 13... dxe4 {[%clk
0:02:44.1]} 14. Bxd8 {[%clk 0:02:11.8]} 14... exf3 {[%clk 0:02:44.3]} 15. Bh4
{[%clk 0:02:10.1]} 15... fxg2 {[%clk 0:02:44.1]} 16. Kxg2 {[%clk 0:02:07.5]}
16... Bg4 {[%clk 0:02:42.6]} 17. f3 {[%clk 0:02:04.3]} 17... Bxf3+ {[%clk
0:02:40.8]} 18. Kxf3 {[%clk 0:01:56.7]} 18... Ne5+ {[%clk 0:02:40.9]} 19. Kf2
{[%clk 0:01:49.6]} 19... Nxc4 {[%clk 0:02:41.8]} 20. b3 {[%clk 0:01:48.1]} 20...
Nb6 {[%clk 0:02:42.3]} 21. Nd2 {[%clk 0:01:46.7]} 21... Bxc3 {[%clk 0:02:41.7]}
22. Rac1 {[%clk 0:01:46.8]} 22... Bxd2 {[%clk 0:02:38.3]} 23. Rxd2 {[%clk
0:01:46.8]} 23... Rac8 {[%clk 0:02:39.2]} 24. Rxc8 {[%clk 0:01:42.7]} 24... Rxc8
{[%clk 0:02:40.1]} 25. Bf6 {[%clk 0:01:42.7]} 25... h6 {[%clk 0:02:39.5]} 26. h4
{[%clk 0:01:40]} 26... Re8 {[%clk 0:02:39.7]} 27. a4 {[%clk 0:01:36.2]} 27...
Nc8 {[%clk 0:02:32]} 28. Rd7 {[%clk 0:01:32.9]} 28... b6 {[%clk 0:02:32.3]} 29.
b4 {[%clk 0:01:20.8]} 29... Kf8 {[%clk 0:02:24.6]} 30. b5 {[%clk 0:01:09.8]}
30... g5 {[%clk 0:02:03.9]} 31. hxg5 {[%clk 0:01:04.1]} 31... hxg5 {[%clk
0:02:04.8]} 32. Kf3 {[%clk 0:01:02.5]} 32... Kg8 {[%clk 0:02:00.6]} 33. Kg4
{[%clk 0:01:00.5]} 33... Kf8 {[%clk 0:01:55.8]} 34. Kxg5 {[%clk 0:00:59.8]}
34... Kg8 {[%clk 0:01:55.9]} 35. Kf4 {[%clk 0:00:54.4]} 35... Re6 {[%clk
0:01:52.3]} 36. Be5 {[%clk 0:00:51.5]} 36... Ne7 {[%clk 0:01:49.5]} 37. Bb8
{[%clk 0:00:39.4]} 37... Ng6+ {[%clk 0:01:48.9]} 38. Kf5 {[%clk 0:00:39.3]}
38... Ne7+ {[%clk 0:01:44.1]} 39. Kf4 {[%clk 0:00:34.8]} 39... Ng6+ {[%clk
0:01:43.7]} 40. Kf5 {[%clk 0:00:35]} 40... Kg7 {[%clk 0:01:38]} 41. Bxa7 {[%clk
0:00:33.3]} 41... Re5+ {[%clk 0:01:36.1]} 42. Kg4 {[%clk 0:00:34]} 42... Re4+
{[%clk 0:01:36.5]} 43. Kg3 {[%clk 0:00:32.6]} 43... Rxa4 {[%clk 0:01:34.8]} 44.
Bxb6 {[%clk 0:00:32.6]} 44... Ra3+ {[%clk 0:01:35.3]} 45. Kf2 {[%clk 0:00:31.6]}
45... Rb3 {[%clk 0:01:33.8]} 46. Bd4+ {[%clk 0:00:31.3]} 46... Kf8 {[%clk
0:01:22.7]} 47. b6 {[%clk 0:00:28.9]} 47... Ke8 {[%clk 0:01:18.3]} 48. Rc7
{[%clk 0:00:23.1]} 48... Nf4 {[%clk 0:01:10.4]} 49. b7 {[%clk 0:00:16.6]} 49...
Ne6 {[%clk 0:01:08.6]} 50. Rc8+ {[%clk 0:00:13.1]} 50... Kd7 {[%clk 0:01:09.1]}
51. b8=Q {[%clk 0:00:12.3]} 51... Rxb8 {[%clk 0:01:10]} 52. Rxb8 {[%clk
0:00:13.1]} 52... Nxd4 {[%clk 0:01:09.8]} 53. Rf8 {[%clk 0:00:11.6]} 53... Ke7
{[%clk 0:01:09.9]} 54. Rxf7+ {[%clk 0:00:12.3]} 54... Kxf7 {[%clk 0:01:10.8]}
1/2-1/2

[Event "Late-Titled-Tuesday-Blitz-March-19-2024"]
[Site "Chess.com"]
[Date "2024.03.19"]
[Round "7"]
[White "Vahe_Danielyan"]
[Black "MikaelyanArman"]
[Result "0-1"]
[WhiteElo "2658"]
[BlackElo "2848"]
[TimeControl "180+1"]
[EndTime "15:15:49 PDT"]
[Termination "MikaelyanArman won by checkmate"]

1. e4 {[%clk 0:03:00.9]} 1... c5 {[%clk 0:02:57.2]} 2. Nc3 {[%clk 0:03:00.5]}
2... e6 {[%clk 0:02:53]} 3. Nge2 {[%clk 0:02:59.4]} 3... Nc6 {[%clk 0:02:48.6]}
4. g3 {[%clk 0:02:59.5]} 4... g6 {[%clk 0:02:46.5]} 5. Bg2 {[%clk 0:02:59.3]}
5... Bg7 {[%clk 0:02:47.2]} 6. O-O {[%clk 0:02:59.8]} 6... Nge7 {[%clk
0:02:47.9]} 7. d3 {[%clk 0:03:00.4]} 7... O-O {[%clk 0:02:45.4]} 8. Be3 {[%clk
0:03:00.4]} 8... b6 {[%clk 0:02:42.7]} 9. d4 {[%clk 0:03:00.3]} 9... cxd4 {[%clk
0:02:38.8]} 10. Nxd4 {[%clk 0:03:01.2]} 10... Ba6 {[%clk 0:02:39.5]} 11. Re1
{[%clk 0:02:59.8]} 11... Ne5 {[%clk 0:02:38.3]} 12. Ndb5 {[%clk 0:02:56.1]}
12... Nc4 {[%clk 0:02:36.1]} 13. Bc1 {[%clk 0:02:55.5]} 13... d5 {[%clk
0:02:30.4]} 14. exd5 {[%clk 0:02:55.3]} 14... Nxd5 {[%clk 0:02:30.8]} 15. Nxd5
{[%clk 0:02:53.5]} 15... exd5 {[%clk 0:02:19.6]} 16. Nd4 {[%clk 0:02:52.9]}
16... Re8 {[%clk 0:02:14.8]} 17. Nc6 {[%clk 0:02:50.1]} 17... Qd6 {[%clk
0:02:09.9]} 18. Bxd5 {[%clk 0:02:40.3]} 18... Kh8 {[%clk 0:01:36.7]} 19. Rxe8+
{[%clk 0:02:30.1]} 19... Rxe8 {[%clk 0:01:37.6]} 20. Bf4 {[%clk 0:02:30.2]}
20... Qc5 {[%clk 0:01:23.7]} 21. Qf3 {[%clk 0:02:05.4]} 21... Nxb2 {[%clk
0:01:12.5]} 22. Be3 {[%clk 0:01:43.6]} 22... Qf8 {[%clk 0:00:57.2]} 23. Bd4
{[%clk 0:01:38]} 23... Bxd4 {[%clk 0:00:51.2]} 24. Nxd4 {[%clk 0:01:38.9]} 24...
Qg7 {[%clk 0:00:51.7]} 25. Qc3 {[%clk 0:00:23.8]} 25... Na4 {[%clk 0:00:35.8]}
26. Qc6 {[%clk 0:00:23.8]} 26... Rd8 {[%clk 0:00:35.6]} 27. Re1 {[%clk
0:00:14.6]} 27... Qxd4 {[%clk 0:00:23.3]} 28. Re8+ {[%clk 0:00:15.1]} 28... Kg7
{[%clk 0:00:17.6]} 29. Rxd8 {[%clk 0:00:11.5]} 29... Qd1+ {[%clk 0:00:17.6]} 30.
Kg2 {[%clk 0:00:12]} 30... Bf1+ {[%clk 0:00:17.5]} 31. Kg1 {[%clk 0:00:08.2]}
31... Bh3# {[%clk 0:00:15.5]} 0-1

[Event "Late-Titled-Tuesday-Blitz-March-19-2024"]
[Site "Chess.com"]
[Date "2024.03.19"]
[Round "7"]
[White "liwadas82"]
[Black "inagreV"]
[Result "1-0"]
[WhiteElo "2518"]
[BlackElo "2385"]
[TimeControl "180+1"]
[EndTime "15:15:52 PDT"]
[Termination "liwadas82 won by resignation"]

1. e4 {[%clk 0:03:00.9]} 1... c5 {[%clk 0:02:57.1]} 2. Nf3 {[%clk 0:03:01]} 2...
Nc6 {[%clk 0:02:57]} 3. d4 {[%clk 0:03:01.6]} 3... cxd4 {[%clk 0:02:57.9]} 4.
Nxd4 {[%clk 0:03:02]} 4... Nf6 {[%clk 0:02:58.3]} 5. Nc3 {[%clk 0:03:01.2]} 5...
d6 {[%clk 0:02:58.8]} 6. Be3 {[%clk 0:03:00.6]} 6... Ng4 {[%clk 0:02:58.3]} 7.
Bb5 {[%clk 0:03:01.3]} 7... Nxe3 {[%clk 0:02:57.3]} 8. fxe3 {[%clk 0:03:02.2]}
8... Bd7 {[%clk 0:02:57.5]} 9. Bxc6 {[%clk 0:03:02.8]} 9... bxc6 {[%clk
0:02:56.5]} 10. O-O {[%clk 0:03:03.7]} 10... e6 {[%clk 0:02:56.5]} 11. Qf3
{[%clk 0:03:04.1]} 11... Qf6 {[%clk 0:02:55.8]} 12. Qh5 {[%clk 0:03:04.6]} 12...
Qe7 {[%clk 0:02:08.2]} 13. e5 {[%clk 0:02:59.8]} 13... g6 {[%clk 0:02:02]} 14.
Qf3 {[%clk 0:02:53.1]} 14... d5 {[%clk 0:01:38]} 15. e4 {[%clk 0:02:53.1]} 15...
Bg7 {[%clk 0:01:37.5]} 16. exd5 {[%clk 0:02:53]} 16... cxd5 {[%clk 0:01:37.6]}
17. Rae1 {[%clk 0:02:46.8]} 17... O-O {[%clk 0:01:37]} 18. Nb3 {[%clk
0:02:46.9]} 18... a5 {[%clk 0:01:32.5]} 19. a3 {[%clk 0:02:43.3]} 19... Rfc8
{[%clk 0:01:30.8]} 20. Kh1 {[%clk 0:02:39.4]} 20... a4 {[%clk 0:01:31]} 21. Nc1
{[%clk 0:02:39.1]} 21... Rc4 {[%clk 0:01:30.5]} 22. Nd3 {[%clk 0:02:37.8]} 22...
Rb8 {[%clk 0:01:26.5]} 23. Nb4 {[%clk 0:02:36.3]} 23... Be8 {[%clk 0:01:21.9]}
24. b3 {[%clk 0:02:24.2]} 24... axb3 {[%clk 0:01:20.9]} 25. cxb3 {[%clk
0:02:25.1]} 25... Rh4 {[%clk 0:01:17.6]} 26. g3 {[%clk 0:02:11.9]} 26... Rh5
{[%clk 0:01:14.1]} 27. Qf4 {[%clk 0:01:51]} 27... Qc7 {[%clk 0:00:53]} 28. Na6
{[%clk 0:01:49.8]} 28... Qxc3 {[%clk 0:00:50.3]} 29. Nxb8 {[%clk 0:01:47.7]}
29... Qc8 {[%clk 0:00:49.1]} 30. g4 {[%clk 0:01:33.5]} 30... Rh4 {[%clk
0:00:47.9]} 31. Qb4 {[%clk 0:00:57.2]} 31... Bf8 {[%clk 0:00:41.7]} 32. Rc1
{[%clk 0:00:46.1]} 32... Qd8 {[%clk 0:00:27.7]} 33. Qb7 {[%clk 0:00:40.8]} 33...
d4 {[%clk 0:00:22.8]} 34. Rc8 {[%clk 0:00:38.7]} 34... Qa5 {[%clk 0:00:06]} 35.
Rxe8 {[%clk 0:00:29.7]} 35... Qxe5 {[%clk 0:00:05.8]} 36. Qxf7+ {[%clk
0:00:27.5]} 1-0